bitfinex-derivatives/quotes_ETHF0:USTF0_20260316
["timestamp","ask_amount","ask_price","bid_price","bid_amount"]
[1773675540530,4.95140129,2285.7,2283.8,8.84763012]
[1773675540531,4.95140129,2285.7,2283.9,5.27441112]
[1773675540737,4.95140129,2285.5,2284.1,5.14156241]
[1773675540933,4.95140129,2285.5,2284.3,5.27441112]
[1773675543838,4.95140129,2285.5,2284.2,6.903]
[1773675543839,4.95140129,2285.5,2284.5,5.27441112]
[1773675545134,4.95140129,2285.9,2284.9,5.27441112]
[1773675545341,4.95140129,2285.9,2285.0,5.27441112]
[1773675546434,40.8,2286.0,2285.0,5.27441112]
[1773675546637,4.95140129,2285.9,2285.0,5.27441112]
[1773675547232,40.8,2286.0,2285.0,5.27441112]
[1773675547438,0.00417148,2286.2,2285.2,5.27441112]
[1773675547734,4.95557277,2286.2,2285.2,5.27441112]
[1773675547935,40.8,2286.1,2285.2,5.27441112]
[1773675549134,40.8,2286.1,2285.4,5.27441112]
[1773675549742,0.00417148,2286.2,2285.4,5.27441112]
[1773675549936,4.95140129,2286.6,2285.6,5.27441112]
[1773675550242,45.75140129,2286.5,2285.6,5.27441112]
[1773675550642,4.95140129,2286.4,2285.6,5.27441112]
[1773675551041,4.9548686,2286.4,2285.6,5.27441112]
[1773675551237,0.00346731,2286.4,2285.6,5.27441112]
[1773675551943,4.9548686,2286.4,2285.4,5.27441112]
[1773675552641,4.9548686,2286.4,2285.1,12.17841112]
[1773675552837,4.95140129,2286.2,2285.1,12.17841112]
[1773675553434,4.95140129,2286.0,2285.1,6.904]
[1773675553639,4.95140129,2285.8,2285.1,12.17841112]
[1773675553935,4.95140129,2285.8,2284.9,0.0039425]
[1773675553936,4.95140129,2286.3,2284.9,0.0039425]
[1773675554134,4.95140129,2286.3,2285.0,12.17841112]
[1773675554439,4.95140129,2286.3,2285.1,5.27441112]
[1773675554634,0.21867,2286.2,2284.9,0.0039425]
[1773675554845,8.74963731,2286.4,2284.9,5.27835362]
[1773675554846,4.95140129,2285.9,2284.9,5.27835362]
[1773675555142,4.95140129,2285.8,2284.9,5.27835362]
[1773675556145,5.06188129,2285.8,2284.9,5.27835362]
[1773675556546,5.06201129,2285.8,2284.9,5.27835362]
[1773675559751,5.06126129,2285.8,2284.9,5.27835362]
[1773675561746,5.06383129,2285.8,2284.9,5.27835362]
[1773675562454,5.06291129,2285.8,2284.9,5.27835362]
[1773675563045,5.06291129,2285.8,2284.9,0.0039425]
[1773675563456,5.4441016,2285.6,2284.3,4.87757945]
[1773675564358,5.1029116,2285.6,2284.3,4.87757945]
[1773675564653,40.8,2285.7,2284.7,4.87757945]
[1773675564852,45.9029116,2285.7,2284.7,4.87757945]
[1773675565750,5.1029116,2285.6,2284.7,4.87757945]
[1773675567557,40.8,2285.7,2284.7,4.87757945]
[1773675567856,4.59163,2286.6,2285.1,4.87757945]
[1773675567857,5.1029116,2286.0,2285.1,4.87757945]
[1773675568859,5.1029116,2285.8,2284.7,4.87757945]
[1773675573962,5.1029116,2286.2,2284.9,13.62931945]
[1773675574159,5.1029116,2286.3,2285.3,4.87757945]
[1773675574358,5.1029116,2286.2,2285.3,4.87757945]
[1773675574850,40.8,2286.3,2285.3,4.87757945]
[1773675575055,5.10637891,2286.4,2285.5,4.87757945]
[1773675575752,5.1029116,2286.6,2285.7,4.87757945]
[1773675575954,5.1029116,2286.6,2285.7,4.98722945]
[1773675576262,5.1029116,2286.6,2285.9,4.98725945]
[1773675576661,5.1029116,2286.6,2285.9,4.87757945]
[1773675576858,5.10606708,2286.6,2285.9,4.87757945]
[1773675579353,5.10606708,2286.6,2285.2,15.65349]
[1773675579354,5.10606708,2286.6,2285.4,0.21569588]
[1773675579563,5.10606708,2286.6,2285.4,4.87757945]
[1773675580064,5.10606708,2286.6,2285.6,4.87757945]
[1773675580662,4.89146,2287.2,2286.0,4.64115407]
[1773675580860,4.89146,2287.2,2286.4,4.64115407]
[1773675581266,45.69146,2287.2,2286.4,4.64115407]
[1773675581766,45.69554704,2287.2,2286.4,4.64514019]
[1773675581961,4.89554704,2287.2,2286.4,4.64514019]
[1773675582163,0.00408704,2287.2,2286.4,4.64514019]
[1773675582364,0.00408704,2287.2,2286.4,4.75468019]
[1773675582564,0.00408704,2287.2,2286.6,4.75121407]
[1773675582760,45.69146,2287.4,2286.6,4.64115407]
[1773675583068,4.89146,2287.6,2286.8,4.64115407]
[1773675583463,45.69146,2287.5,2286.8,4.64115407]
[1773675583768,4.89146,2287.4,2286.8,4.64115407]
[1773675584466,0.0038604,2287.5,2286.8,4.64115407]
[1773675585469,4.8953204,2287.5,2286.8,4.64115407]
[1773675588270,4.8953204,2287.5,2286.7,4.85977407]
[1773675588666,4.8953204,2287.5,2286.7,4.64115407]
[1773675592271,4.8953204,2287.5,2286.6,6.9]
[1773675593772,4.8953204,2287.5,2286.7,4.56207858]
[1773675595679,4.8953204,2287.5,2286.6,6.9]
[1773675595878,4.8953204,2287.5,2286.6,11.82732772]
[1773675596079,4.8953204,2287.5,2286.7,4.92732772]
[1773675596980,4.8953204,2287.5,2286.6,6.9]
[1773675597182,4.8953204,2287.5,2286.5,4.92732772]
[1773675597583,4.8953204,2287.5,2286.4,0.00398612]
[1773675597780,1.87614708,2287.1,2285.7,4.92732772]
[1773675597976,4.79244049,2286.7,2285.5,4.92732772]
[1773675598484,4.79244049,2286.5,2285.5,4.92732772]
[1773675598884,4.79244049,2286.5,2285.5,4.93259081]
[1773675599680,4.79244049,2286.3,2285.5,4.93259081]
[1773675600077,4.79244049,2286.3,2285.5,0.00526309]
[1773675600677,4.79244049,2286.3,2285.5,4.93259081]
[1773675603684,20.18344049,2286.3,2285.5,0.00526309]
[1773675603989,4.79244049,2286.1,2285.5,0.00526309]
[1773675605279,4.79244049,2286.1,2285.2,4.92732772]
[1773675605683,4.79244049,2286.1,2285.0,4.92732772]
[1773675606388,4.79244049,2286.1,2285.0,4.93299449]
[1773675606890,4.79244049,2286.1,2285.0,5.15176449]
[1773675609682,1.87614708,2287.1,2285.0,5.15176449]
[1773675609683,4.79244049,2287.0,2285.3,4.92732772]
[1773675609885,4.79244049,2287.0,2285.5,4.92732772]
[1773675610082,4.79244049,2286.8,2285.4,4.92732772]
[1773675610288,4.79244049,2286.6,2285.4,4.92732772]
[1773675610482,4.79244049,2286.5,2285.1,4.92732772]
[1773675612089,4.79244049,2286.3,2285.1,4.92732772]
[1773675612285,4.79244049,2286.3,2285.3,4.92732772]
[1773675612488,4.79244049,2286.3,2285.5,4.92732772]
[1773675616093,4.79244049,2286.3,2285.4,0.21874]
[1773675616489,4.79244049,2286.3,2285.4,5.14606772]
[1773675617985,4.79244049,2286.8,2286.0,0.21868]
[1773675618186,4.79244049,2287.4,2286.3,4.92732772]
[1773675618386,4.79244049,2287.3,2286.5,4.92732772]
[1773675618592,4.79244049,2287.1,2286.4,5.14597772]
[1773675620399,4.79244049,2287.1,2285.6,4.92732772]
[1773675620896,4.79244049,2287.1,2285.8,4.92732772]
[1773675622497,4.79244049,2287.1,2286.2,4.62841436]
[1773675623098,4.79244049,2287.1,2286.4,4.62841436]
[1773675624605,4.79244049,2287.1,2286.2,4.62841436]
[1773675624905,4.79244049,2287.1,2286.3,11.53441436]
[1773675625096,4.79244049,2287.1,2286.3,4.62841436]
[1773675626102,4.79244049,2287.1,2286.2,6.906]
[1773675626303,4.79244049,2287.1,2285.8,11.53441436]
[1773675626506,4.79244049,2287.1,2285.8,6.906]
[1773675626507,4.74110074,2286.9,2285.8,6.906]
[1773675626803,4.74110074,2286.9,2285.9,4.62841436]
[1773675628200,4.85078074,2286.9,2285.9,4.62841436]
[1773675628403,4.74110074,2286.9,2285.9,4.62841436]
[1773675631403,4.74110074,2286.9,2285.8,6.907]
[1773675632100,4.74110074,2286.9,2285.7,11.53541436]
[1773675632502,4.74110074,2286.9,2285.7,4.62841436]
[1773675633497,4.85124074,2286.9,2285.7,4.62841436]
[1773675633900,4.74110074,2286.7,2285.6,6.907]
[1773675634099,4.85234074,2286.7,2285.6,11.53541436]
[1773675634311,4.85199074,2286.7,2285.7,4.62841436]
[1773675634512,4.74110074,2286.5,2285.7,4.62841436]
[1773675634714,4.85715074,2286.5,2285.6,6.907]
[1773675634912,4.85715074,2286.5,2285.6,11.53541436]
[1773675635106,4.85715074,2286.5,2285.6,6.907]
[1773675635611,4.74110074,2286.5,2285.7,4.62841436]
[1773675636312,4.85243074,2286.5,2285.7,4.62841436]
[1773675636512,4.85243074,2286.5,2285.6,6.907]
[1773675637309,4.85243074,2286.5,2285.6,11.53541436]
[1773675637610,4.74110074,2286.5,2285.7,4.62841436]
[1773675638508,4.74110074,2286.5,2285.9,4.62841436]
[1773675640010,45.54110074,2286.9,2285.9,4.62841436]
[1773675640210,4.74110074,2286.8,2285.9,4.62841436]
[1773675640905,4.74110074,2286.8,2285.7,4.62841436]
[1773675641511,4.74110074,2286.8,2285.7,11.53841436]
[1773675641713,4.74110074,2286.6,2285.3,4.62841436]
[1773675642415,4.74110074,2286.4,2285.3,4.62841436]
[1773675642610,4.74110074,2286.4,2285.2,6.91]
[1773675642817,4.74110074,2286.6,2285.3,4.62841436]
[1773675643315,4.74110074,2286.6,2285.5,4.62841436]
[1773675643512,4.74110074,2286.4,2285.1,13.47604448]
[1773675643713,4.74110074,2286.4,2285.1,4.62841436]
[1773675644415,4.74110074,2286.4,2285.2,4.62841436]
[1773675645319,4.85183074,2286.4,2285.2,4.62841436]
[1773675645516,4.85078074,2286.4,2285.2,4.62841436]
[1773675645722,4.85078074,2286.4,2285.1,6.911]
[1773675645921,4.85078074,2286.4,2285.1,11.53941436]
[1773675646523,4.85868074,2286.2,2285.1,11.53941436]
[1773675646817,4.85192074,2286.2,2285.2,4.62841436]
[1773675647023,4.74110074,2286.2,2285.2,4.62841436]
[1773675647324,4.85298074,2286.2,2285.2,4.62841436]
[1773675647924,4.74110074,2286.2,2285.2,4.62841436]
[1773675648119,4.85557074,2286.2,2285.2,4.62841436]
[1773675648720,4.74110074,2286.2,2285.2,4.62841436]
[1773675649118,4.85180074,2286.2,2285.2,4.62841436]
[1773675650520,4.85180074,2286.2,2285.0,4.63408113]
[1773675650720,20.47380074,2286.2,2285.0,0.00566677]
[1773675651028,4.86259074,2286.1,2285.0,0.00566677]
[1773675652025,4.86803074,2285.9,2285.0,0.00566677]
[1773675656227,4.37485397,2285.0,2284.5,4.29739777]
[1773675656530,4.26933074,2285.2,2284.5,1.95556751]
[1773675656720,4.40066074,2285.2,2284.5,1.95556751]
[1773675657428,4.40572528,2285.2,2284.5,1.95992221]
[1773675658928,4.27439528,2285.2,2284.5,1.95992221]
[1773675661635,4.27439528,2285.2,2284.6,0.73052475]
[1773675661831,4.36793641,2285.4,2284.6,0.73052475]
[1773675662931,4.37237061,2285.4,2284.6,0.73534539]
[1773675663432,0.0044342,2285.4,2284.6,0.73534539]
[1773675663626,0.0044342,2285.4,2284.7,0.7865806]
[1773675663832,4.43809812,2285.6,2284.7,0.7865806]
[1773675664033,4.43809812,2285.9,2284.9,0.77960871]
[1773675664234,4.43809812,2285.9,2284.7,0.77960871]
[1773675664736,4.44307337,2285.9,2284.7,0.77960871]
[1773675666035,4.44307337,2285.9,2284.6,0.00482064]
[1773675666036,4.47060554,2285.7,2284.6,0.00482064]
[1773675666237,4.47060554,2285.7,2284.6,0.70504594]
[1773675666633,4.47060554,2285.7,2284.6,0.00482064]
[1773675667232,4.48654042,2285.5,2284.6,0.00482064]
[1773675667637,4.48641026,2285.3,2283.6,0.66129627]
[1773675667842,4.48641026,2285.1,2283.6,0.66129627]
[1773675668036,4.48641026,2284.9,2283.6,0.66129627]
[1773675668340,4.48641026,2284.9,2283.6,0.21891]
[1773675668543,4.48641026,2284.9,2283.6,0.22252038]
[1773675669438,4.48641026,2284.9,2283.7,6.91]
[1773675669838,4.48641026,2284.9,2283.8,0.16561566]
[1773675670736,4.48641026,2284.9,2284.0,0.14717108]
[1773675670942,4.83795405,2285.6,2284.2,0.34923627]
[1773675671441,4.83795405,2285.4,2284.2,0.34923627]
[1773675671643,4.83795405,2285.4,2283.7,3.91]
[1773675671939,4.83795405,2285.4,2283.8,0.34789245]
[1773675672542,4.83795405,2285.4,2283.7,3.91]
[1773675672740,5.05487432,2284.8,2282.9,0.34477602]
[1773675672942,4.83607432,2284.6,2283.1,0.33655491]
[1773675673139,4.83607432,2284.6,2283.3,0.33655491]
[1773675673540,4.83607432,2284.6,2283.5,0.36563702]
[1773675673741,4.83607432,2284.6,2283.5,0.36957032]
[1773675674745,4.83607432,2284.6,2283.5,0.0039333]
[1773675676443,4.83607432,2284.6,2283.5,0.11499112]
[1773675676844,4.9280047,2284.4,2283.5,0.11499112]
[1773675677347,4.9280047,2284.4,2283.7,0.09206023]
[1773675677849,15.663,2285.3,2283.7,0.09206023]
[1773675677850,4.94141237,2285.3,2283.7,0.09206023]
[1773675678039,4.94141237,2285.1,2283.9,0.04789076]
[1773675678239,40.8,2285.0,2283.9,0.04789076]
[1773675678439,4.94141237,2284.9,2283.9,0.04789076]
[1773675678947,4.94141237,2284.9,2283.9,0.03164071]
[1773675679349,4.94141237,2284.9,2283.5,0.03557401]
[1773675681452,4.93551892,2284.7,2283.5,0.0039333]
[1773675684055,4.93993469,2284.5,2283.5,0.0039333]
[1773675686061,4.93993469,2284.5,2283.6,0.21891]
[1773675687255,4.93993469,2284.5,2283.5,0.0039333]
[1773675688159,4.933854,2284.3,2282.5,0.21902]
[1773675688359,4.933854,2284.1,2282.5,0.21902]
[1773675688560,0.21884,2284.4,2282.5,0.21902]
[1773675688561,4.93220312,2283.9,2282.5,0.21902]
[1773675689056,4.93632418,2283.9,2282.5,0.22216193]
[1773675689459,4.93632418,2283.9,2282.6,0.03177841]
[1773675689762,4.93632418,2283.9,2282.8,0.03177841]
[1773675690960,4.93632418,2283.9,2282.6,0.20376143]
[1773675691557,4.93632418,2283.9,2282.5,0.00314193]
[1773675691956,4.93632418,2283.9,2282.5,0.19531687]
[1773675692761,4.74820088,2283.7,2282.5,0.00314193]
[1773675694554,4.74820088,2283.7,2281.4,24.07418]
[1773675694555,4.77111506,2283.5,2281.5,0.34149847]
[1773675694753,4.77111506,2283.4,2281.9,0.12238847]
[1773675695162,4.77111506,2283.2,2281.9,0.12238847]
[1773675695351,4.77111506,2283.2,2282.0,0.21907]
[1773675695558,4.77111506,2283.2,2282.1,0.16975779]
[1773675695863,4.77111506,2283.2,2282.3,0.15444965]
[1773675696764,4.77111506,2283.2,2282.2,0.21905]
[1773675696963,4.77111506,2283.2,2282.3,0.1916316]
[1773675697163,4.77111506,2283.2,2282.0,0.00546551]
[1773675697466,4.70195792,2283.1,2282.0,0.00546551]
[1773675698363,4.70195792,2283.1,2282.0,0.20441396]
[1773675699259,4.70195792,2283.1,2282.0,0.00546551]
[1773675700065,4.70195792,2283.1,2282.0,0.38600081]
[1773675700567,4.70195792,2283.1,2282.0,0.00546551]
[1773675700768,4.70195792,2283.1,2282.0,0.36462706]
[1773675703069,4.70195792,2283.1,2282.0,0.00546551]
[1773675703461,4.82620966,2283.0,2281.7,0.31289885]
[1773675703664,4.60723966,2283.0,2281.7,0.31289885]
[1773675703867,4.60723966,2283.0,2281.9,0.31289885]
[1773675704564,4.60723966,2283.0,2281.9,0.31622544]
[1773675704762,4.60723966,2283.0,2281.9,0.00332659]
[1773675705465,4.60723966,2283.0,2282.1,0.27947152]
[1773675705664,4.60723966,2283.0,2282.3,0.27947152]
[1773675705863,4.60723966,2283.0,2282.2,0.21905]
[1773675706866,4.60723966,2283.0,2282.2,0.43127048]
[1773675707068,4.60723966,2283.0,2282.3,0.21222048]
[1773675707467,4.60723966,2283.0,2281.9,7.11015103]
[1773675707860,4.60723966,2283.0,2281.9,0.00332659]
[1773675709769,4.60723966,2283.0,2281.9,0.32670742]
[1773675709967,4.60723966,2283.0,2282.1,0.30905365]
[1773675710167,4.60723966,2283.0,2282.3,0.30905365]
[1773675710366,4.55796587,2283.3,2282.3,0.30905365]
[1773675710568,4.55796587,2283.3,2282.4,0.21903]
[1773675713270,4.55796587,2283.3,2281.9,1.88271715]
[1773675713271,4.55796587,2283.3,2281.9,2.10178715]
[1773675713673,4.55796587,2283.3,2281.9,0.22239659]
[1773675714269,4.55796587,2283.3,2281.9,0.00332659]
[1773675715370,0.21897,2283.0,2281.9,0.00332659]
[1773675715576,0.21897,2283.0,2281.6,0.62305489]
[1773675715775,4.86400589,2282.9,2281.6,0.62305489]
[1773675715978,4.86400589,2282.9,2281.7,4.96202912]
[1773675716173,4.86400589,2282.9,2281.6,0.84324136]
[1773675716478,4.83811651,2282.7,2281.6,0.84849977]
[1773675716772,4.83811651,2282.9,2281.7,0.2191]
[1773675716974,4.83811651,2283.4,2281.7,5.28363682]
[1773675717178,4.83811651,2283.4,2281.7,9.27061104]
[1773675717376,4.83811651,2283.2,2281.7,9.27061104]
[1773675717679,4.83811651,2283.2,2282.2,0.21904]
[1773675718181,4.83811651,2283.2,2281.9,6.791]
[1773675718673,4.83811651,2283.2,2281.8,9.05151104]
[1773675718872,4.83811651,2283.2,2281.7,15.84051104]
[1773675719073,4.83811651,2283.2,2281.8,9.05151104]
[1773675719871,4.83811651,2283.2,2281.9,0.21908]
[1773675720579,4.83811651,2283.2,2281.9,0.33099]
[1773675720774,4.83811651,2283.2,2281.9,0.32903]
[1773675721183,4.83811651,2283.2,2281.9,9.38054104]
[1773675721381,4.83811651,2283.2,2281.9,9.27059104]
[1773675721679,15.641,2283.5,2282.0,17.52584]
[1773675721873,5.05505535,2283.8,2283.0,0.21897]
[1773675722077,5.05505535,2283.8,2282.5,0.21902]
[1773675722278,5.05505535,2283.8,2282.6,6.785]
[1773675722475,5.05505535,2283.8,2282.7,0.33061]
[1773675723875,5.27019623,2285.1,2283.2,0.34146]
[1773675724082,5.27019623,2284.9,2283.3,6.89367]
[1773675724287,5.27019623,2284.7,2283.3,6.89367]
[1773675724981,5.27397657,2284.7,2283.3,6.8993629]
[1773675725577,5.27397657,2284.7,2283.3,6.8992729]
[1773675725980,5.27397657,2284.7,2283.4,0.33083]
[1773675726979,5.27397657,2284.7,2283.4,0.32851]
[1773675727176,5.27397657,2284.7,2283.4,9.08602]
[1773675727376,5.27397657,2284.7,2283.4,0.33204]
[1773675729280,5.27397657,2284.7,2283.4,0.21893]
[1773675729480,5.27397657,2284.7,2283.4,0.3291]
[1773675730284,5.27397657,2284.7,2283.4,0.3329]
[1773675732479,5.13156007,2285.1,2284.2,8.75419]
[1773675732680,4.5261733,2286.3,2284.8,0.2188]
[1773675732879,4.5261733,2286.1,2284.8,4.51109924]
[1773675733084,4.5261733,2286.1,2284.8,4.62097924]
[1773675733486,4.53026176,2286.1,2284.8,4.62097924]
[1773675733681,4.53026176,2286.1,2284.9,4.40611924]
[1773675733883,4.53026176,2286.1,2284.9,4.4054408]
[1773675734082,4.53026176,2286.1,2285.1,4.40382924]
[1773675735083,0.00408846,2286.1,2285.2,0.33631]
[1773675735285,4.52895768,2286.1,2285.3,4.29229924]
[1773675735681,4.52895768,2286.1,2285.3,4.40289924]
[1773675736188,4.52895768,2286.1,2285.3,4.40277924]
[1773675737083,4.52895768,2286.1,2285.3,4.29229924]
[1773675740190,4.52895768,2286.1,2285.3,4.40212924]
[1773675741391,4.52895768,2286.1,2285.3,4.29229924]
[1773675741890,4.52895768,2286.1,2285.2,0.21876]
[1773675742386,4.52895768,2286.1,2285.2,0.33323]
[1773675742591,4.52895768,2286.1,2285.2,5.1261076]
[1773675745794,4.52895768,2286.1,2285.2,5.0116376]
[1773675745994,4.52895768,2286.1,2285.2,5.1230476]
[1773675746194,4.52895768,2286.1,2285.2,0.33017]
[1773675746496,4.52895768,2286.1,2285.2,0.32858]
[1773675746688,4.52895768,2286.1,2285.2,0.21876]
[1773675748297,4.52895768,2286.1,2285.0,6.782]
[1773675749293,4.52895768,2286.1,2284.9,0.00357156]
[1773675750093,4.52895768,2286.1,2284.9,4.79644916]
[1773675756194,4.52895768,2286.1,2285.1,4.7928776]
[1773675757303,4.52895768,2286.1,2285.0,0.21878]
[1773675757500,4.52895768,2286.1,2285.0,5.0116576]
[1773675763707,4.52895768,2286.1,2284.9,0.00357156]
[1773675767105,4.52895768,2286.1,2284.9,5.01523916]
[1773675771507,4.52895768,2286.1,2285.1,4.7928776]
[1773675773204,4.52895768,2286.1,2284.9,0.22236156]
[1773675773515,4.57900696,2285.9,2284.9,0.00357156]
[1773675775108,4.57900696,2285.9,2284.9,4.44471593]
[1773675780810,4.57900696,2285.9,2285.0,4.44114437]
[1773675782210,4.57900696,2285.9,2284.9,9.0550826]
[1773675782415,4.57900696,2285.9,2284.9,13.49622697]
[1773675783411,4.57900696,2285.9,2285.0,4.44114437]
[1773675786215,4.57900696,2285.9,2284.9,0.00357156]
[1773675786921,4.49712072,2285.7,2284.9,0.00357156]
[1773675789015,4.49712072,2285.7,2284.7,6.791]
[1773675789221,4.49712072,2285.7,2284.5,4.44114437]
[1773675790220,4.49712072,2285.7,2284.5,4.44588556]
[1773675791519,4.49712072,2285.7,2284.7,4.44114437]
[1773675792219,4.49712072,2285.7,2284.8,6.802]
[1773675792421,4.49712072,2285.7,2284.9,4.44114437]
[1773675795224,4.49712072,2285.7,2284.9,11.25114437]
[1773675795520,4.49712072,2285.7,2285.0,4.44114437]
[1773675800826,4.49712072,2285.7,2284.9,6.81]
[1773675801220,4.49712072,2285.6,2284.9,6.81]
[1773675801425,4.49712072,2285.6,2284.9,3.1319084]
[1773675803129,4.49712072,2285.6,2284.5,0.00474119]
[1773675803130,4.49712072,2285.6,2284.5,6.83974119]
[1773675803526,4.61248072,2285.6,2284.5,6.83974119]
[1773675803929,4.61248072,2285.6,2284.5,11.24044443]
[1773675804923,4.49712072,2285.6,2284.6,4.40070324]
[1773675805127,4.60711072,2285.6,2284.6,4.40070324]
[1773675805328,4.60795072,2285.6,2284.6,4.40070324]
[1773675805528,4.49712072,2285.6,2284.6,4.40070324]
[1773675809239,4.49712072,2285.6,2284.6,4.61952324]
[1773675810737,4.49712072,2285.6,2284.6,4.40070324]
[1773675811742,4.47393531,2285.5,2284.6,4.40070324]
[1773675812745,4.47393531,2285.5,2284.5,4.40544443]
[1773675815548,4.47393531,2285.3,2284.5,0.00474119]
[1773675815743,4.58354531,2285.3,2284.5,0.00474119]
[1773675816142,4.47393531,2285.3,2284.5,4.40544443]
[1773675816942,4.58357531,2285.3,2284.5,4.40544443]
[1773675817142,4.47393531,2285.3,2284.5,4.40544443]
[1773675817345,4.58407531,2285.3,2284.5,4.40544443]
[1773675817646,4.47393531,2285.3,2284.5,4.40544443]
[1773675818848,4.58391531,2285.3,2284.5,4.40544443]
[1773675819251,4.47393531,2285.3,2284.5,4.40544443]
[1773675820351,4.47393531,2285.5,2284.7,4.40070324]
[1773675824949,4.47393531,2285.5,2284.6,4.61952324]
[1773675825149,4.47393531,2285.5,2284.8,4.40070324]
[1773675825649,4.47393531,2285.5,2284.7,6.88]
[1773675825951,4.47393531,2285.5,2284.7,11.28070324]
[1773675826748,4.47393531,2285.5,2284.8,4.40070324]
[1773675829055,4.47393531,2285.7,2285.0,4.40070324]
[1773675830351,4.47393531,2285.7,2284.7,15.93151104]
[1773675830352,4.47393531,2286.0,2285.2,4.40070324]
[1773675831051,4.47393531,2286.0,2285.1,0.21877]
[1773675831052,4.47393531,2286.0,2285.4,4.40070324]
[1773675831847,40.80278438,2286.1,2285.4,4.40070324]
[1773675833053,4.40566053,2286.0,2285.3,11.45594077]
[1773675833448,4.40566053,2286.0,2285.4,4.56094077]
[1773675834762,4.40566053,2286.0,2285.3,6.895]
[1773675836657,4.40566053,2286.0,2285.1,4.24522762]
[1773675841754,4.51509053,2286.0,2285.1,4.24522762]
[1773675841956,4.40566053,2286.0,2285.0,4.24522762]
[1773675842757,4.40566053,2286.0,2284.8,6.927]
[1773675842758,4.51516053,2286.0,2284.8,6.927]
[1773675843160,4.59139422,2285.8,2284.8,6.927]
[1773675843360,4.59176422,2285.6,2284.8,6.927]
[1773675843759,4.59175422,2285.6,2284.6,4.24522762]
[1773675844361,4.47901422,2285.6,2284.6,4.24522762]
[1773675844562,4.59287422,2285.6,2284.6,4.24522762]
[1773675846363,4.59287422,2285.6,2284.5,4.24996881]
[1773675846563,4.59312422,2285.5,2284.5,4.24996881]
[1773675846865,4.59312422,2285.5,2284.6,4.24522762]
[1773675847673,4.59312422,2285.5,2284.5,4.24996881]
[1773675848372,4.59312422,2285.5,2284.5,0.00474119]
[1773675848671,4.59885422,2285.3,2284.5,0.00474119]
[1773675848865,4.59885422,2285.3,2284.5,4.24996881]
[1773675850372,4.47901422,2285.9,2284.7,4.24522762]
[1773675850567,4.47901422,2285.9,2284.9,4.24522762]
[1773675850872,4.47901422,2285.7,2284.9,4.24522762]
[1773675851563,4.47901422,2285.7,2284.7,4.24522762]
[1773675853367,4.58876422,2285.7,2284.7,4.24522762]
[1773675853568,4.47901422,2285.7,2284.7,4.24522762]
[1773675856471,4.47901422,2285.5,2284.7,4.24522762]
[1773675859278,4.47901422,2285.5,2284.8,4.24522762]
[1773675859967,40.8,2285.6,2284.8,4.24522762]
[1773675860169,45.27901422,2285.6,2284.8,4.24522762]
[1773675860375,4.47901422,2285.5,2284.8,4.24522762]
[1773675860768,4.47901422,2285.5,2284.7,11.18922762]
[1773675860972,4.47901422,2285.5,2284.8,4.24522762]
[1773675864878,40.8,2285.6,2284.8,4.24522762]
[1773675865081,4.23788845,2285.7,2284.8,4.24522762]
[1773675865680,4.23788845,2285.6,2284.8,4.24522762]
[1773675866979,4.24067283,2286.1,2285.0,4.41837272]
[1773675867483,4.23788845,2285.9,2285.0,4.41837272]
[1773675867973,4.45658845,2285.9,2284.6,11.37837272]
[1773675868174,4.23788845,2285.7,2284.6,6.96]
[1773675868374,4.23788845,2285.5,2284.6,6.96]
[1773675869884,4.23788845,2285.5,2284.6,11.37837272]
[1773675870980,4.34831845,2285.5,2284.6,11.37837272]
[1773675871179,4.34831845,2285.5,2284.5,6.97274119]
[1773675871379,4.23788845,2285.5,2284.6,4.41837272]
[1773675871983,4.34779845,2285.5,2284.6,4.41837272]
[1773675872581,4.23788845,2285.5,2284.6,4.41837272]
[1773675872887,4.23788845,2285.4,2284.6,4.41837272]
[1773675874389,4.34738845,2285.4,2284.6,4.41837272]
[1773675874787,4.23788845,2285.4,2284.6,4.41837272]
[1773675875393,4.34799845,2285.4,2284.6,4.41837272]
[1773675875993,4.34788845,2285.4,2284.6,4.41837272]
[1773675876996,4.34776845,2285.4,2284.6,4.41837272]
[1773675881299,4.34776845,2285.4,2284.5,6.97274119]
[1773675881599,4.34776845,2285.4,2284.5,0.00474119]
[1773675881996,4.35542845,2285.2,2284.1,11.41237272]
[1773675882192,4.23788845,2285.0,2284.2,4.41837272]
[1773675882395,45.14773845,2284.9,2284.2,4.41837272]
[1773675882799,45.03788845,2284.9,2284.2,4.41837272]
[1773675882996,4.23788845,2284.8,2284.2,4.42348342]
[1773675885801,4.23788845,2284.8,2284.3,4.41837272]
[1773675886302,40.8,2284.9,2284.3,4.41837272]
[1773675886798,4.23788845,2285.2,2284.3,4.41837272]
[1773675887198,40.8,2285.1,2284.3,4.41837272]
[1773675889505,40.8,2285.1,2284.4,0.21884]
[1773675889705,40.8,2285.1,2284.5,4.41837272]
[1773675890096,45.03788845,2285.1,2284.5,4.41837272]
[1773675893008,4.22919069,2285.0,2284.5,4.41837272]
[1773675896104,4.22919069,2285.0,2284.3,4.12204319]
[1773675896309,4.22919069,2285.0,2284.2,7.0371107]
[1773675897008,4.22919069,2285.0,2283.9,4.12204319]
[1773675897605,4.22919069,2285.0,2283.8,7.034]
[1773675897811,4.28389341,2284.8,2283.8,7.034]
[1773675898012,4.28389341,2284.6,2283.8,7.03731292]
[1773675898211,4.28389341,2284.5,2283.8,0.00331292]
[1773675898412,4.28926389,2284.5,2283.8,0.00331292]
[1773675899109,4.28926389,2284.5,2283.6,7.038]
[1773675899510,4.28926389,2284.5,2283.6,11.16004319]
[1773675899710,4.28926389,2284.5,2283.6,7.038]
[1773675900212,4.28926389,2284.5,2283.6,7.04283552]
[1773675900509,4.28926389,2284.5,2283.7,4.12204319]
[1773675900903,0.00537048,2284.5,2283.7,4.34094319]
[1773675901703,4.28389341,2284.8,2283.7,4.34094319]
[1773675901909,45.08389341,2285.0,2284.2,4.12204319]
[1773675902214,4.28389341,2286.0,2285.3,4.12204319]
[1773675902402,16.262,2286.7,2285.4,4.12204319]
[1773675902403,4.28389341,2286.6,2285.4,4.12204319]
[1773675902609,4.28389341,2286.4,2285.4,4.12204319]
[1773675902808,4.28700445,2286.4,2285.6,4.12204319]
[1773675903908,4.28700445,2286.4,2285.4,0.00502967]
[1773675904312,4.28700445,2286.4,2285.0,4.12204319]
[1773675904615,4.28389341,2286.2,2284.4,4.12204319]
[1773675904815,4.28389341,2286.2,2284.6,4.12204319]
[1773675905007,4.28389341,2286.2,2284.8,4.12204319]
[1773675905211,4.28389341,2286.2,2284.9,7.055]
[1773675905412,4.28389341,2286.2,2284.9,7.05815804]
[1773675905612,4.28389341,2286.0,2284.9,7.05815804]
[1773675905809,4.28389341,2285.8,2285.0,4.12204319]
[1773675908117,4.28389341,2285.8,2284.9,11.18020123]
[1773675909309,4.28389341,2285.8,2284.9,7.05815804]
[1773675909515,4.28389341,2285.8,2284.9,11.18020123]
[1773675909810,4.28389341,2285.8,2284.9,0.00315804]
[1773675910215,4.28389341,2285.8,2284.6,4.12204319]